fUSD/lending_fUSD_20250930
["ID","MTS","AMOUNT","RATE_DAILY","PERIOD"]
[388628690,1759272640731,-569.73860699,0.00017438,2]
[388628691,1759272640740,-455.14809776,0.00017438,2]
[388628692,1759272640749,-193.31302834,0.00017439,2]
[388628693,1759272640758,-61308.20671393,0.00017441,2]
[388628694,1759272640767,-737.32685892,0.00017444,2]
[388628695,1759272640776,-569.73860699,0.00017446,2]
[388628696,1759272640786,-1149.07872537,0.00017447,2]
[388628697,1759272640798,-556.31555542,0.0001745,2]
[388628698,1759272640808,-1236.43454488,0.00017451,2]
[388628699,1759272640817,-556.31555542,0.00017451,2]
[388628700,1759272640826,-569.73860699,0.00017454,2]
[388628701,1759272640835,-1236.43454488,0.00017459,2]
[388628702,1759272640844,-556.31555542,0.00017461,2]
[388628703,1759272640853,-720.08666809,0.00017462,2]
[388628704,1759272640863,-195.64474859,0.00017464,2]
[388628705,1759272640872,-742.97043414,0.00017485,2]
[388628706,1759272640881,-195.64474859,0.00017486,2]
[388628707,1759272640890,-1236.43454488,0.00017488,2]
[388628708,1759272640900,-12493.05219356,0.00017493,2]
[388628709,1759272640909,-1447.387507,0.00017494,2]
[388628710,1759272640919,-737.32685892,0.00017494,2]
[388628711,1759272640928,-193.31302834,0.00017496,2]
[388628712,1759272640937,-181.64399512,0.00017509,2]
[388628713,1759272640947,-1501.53,0.00017522,2]
[388628714,1759272640956,-1000.0,0.00017557,2]
[388628715,1759272640967,-156.83,0.00017609,2]
[388628716,1759272640975,-1000.0,0.00017708,2]
[388628717,1759272640985,-165.83,0.00017975,2]
[388628718,1759272640994,-156.83,0.00018085,2]
[388628719,1759272641004,-150.0,0.0001813,7]
[388628720,1759272641014,-257.91778498,0.0001816,2]
[388628721,1759272641023,-644.79446246,0.0001816,2]
[388628722,1759272641033,-275.55291977,0.00018214,2]
[388628723,1759272641042,-236.0,0.000183,2]
[388628724,1759272641051,-1677.7836511,0.00018323,2]
[388628725,1759272641061,-2500.0,0.00018323,2]
[388628726,1759272641071,-2500.0,0.00018323,2]
[388628727,1759272641080,-300.0,0.00018323,2]
[388628728,1759272641091,-250.0,0.00018323,2]
[388628729,1759272641102,-1000.0,0.0001833,2]
[388628730,1759272641111,-1000.0,0.0001833,2]
[388628731,1759272641120,-1000.0,0.0001833,2]
[388628732,1759272641129,-1000.0,0.0001833,2]
[388628733,1759272641139,-1000.0,0.0001833,2]
[388628734,1759272641148,-1000.0,0.0001833,2]
[388628735,1759272641157,-670.58624095,0.0001833,2]
[388628736,1759272641166,-500.0,0.0001833,2]
[388628737,1759272641175,-500.0,0.0001833,2]
[388628738,1759272641184,-500.0,0.0001833,2]
[388628739,1759272641195,-500.0,0.0001833,2]
[388628740,1759272641206,-500.0,0.0001833,2]
[388628741,1759272641217,-500.0,0.0001833,2]
[388628742,1759272641227,-500.0,0.0001833,2]
[388628743,1759272641237,-500.0,0.0001833,2]
[388628744,1759272641247,-471.44064402,0.0001833,2]
[388628745,1759272641259,-322.6107,0.0001833,2]
[388628746,1759272641269,-151.83,0.00018341,2]
[388628747,1759272641278,-2901.315,0.00018367,2]
[388628748,1759272641289,-307.92009188,0.000184,2]
[388628749,1759272641298,-191.3181429,0.000184,2]
[388628750,1759272641307,-370.35923647,0.00018426,2]
[388628751,1759272641316,-166.31,0.00018478,2]
[388628752,1759272641326,-300.49,0.00018491,2]
[388628753,1759272641335,-999.99,0.00018533,2]
[388628754,1759272641344,-309.08,0.00018533,2]
[388628755,1759272641353,-9999.99,0.00018533,2]
[388628756,1759272641362,-307.92009188,0.000186,2]
[388628757,1759272641371,-191.3181429,0.000186,2]
[388628758,1759272641381,-868.87360398,0.00018676,2]
[388628759,1759272641390,-151.72,0.000187,2]
[388628760,1759272641400,-307.92009188,0.000188,2]
[388628761,1759272641409,-191.3181429,0.000188,2]
[388628762,1759272641419,-500.0,0.000188,2]
[388628763,1759272641429,-500.0,0.000188,2]
[388628764,1759272641438,-151.95,0.00018849,2]
[388628765,1759272641448,-9855.55697253,0.00018878,2]
[388628766,1759272641463,-2500.0,0.00018888,2]
[388628767,1759272641472,-2000.0,0.000189,2]
[388628768,1759272641482,-1680.0,0.00018939,2]
[388628769,1759272641491,-591.67,0.00018968,2]
[388628770,1759272641502,-500.0,0.00018977,2]
[388628771,1759272641511,-577.7367596,0.00018977,2]
[388628772,1759272641522,-500.0,0.00018977,2]
[388628773,1759272641535,-500.0,0.00018977,2]
[388628774,1759272641543,-500.0,0.00018977,2]
[388628775,1759272641552,-500.0,0.00018977,2]
[388628776,1759272641561,-500.0,0.00018977,2]
[388628777,1759272641570,-500.0,0.00018977,2]
[388628778,1759272641580,-982.4945176,0.00018978,2]
[388628779,1759272641589,-145550.3719408,0.00018978,2]
[388628780,1759272641598,-159.6651565,0.00018978,2]
[388628781,1759272641607,-3080.5432549,0.00018978,2]
[388628782,1759272641616,-591.67,0.0001899,2]
[388628783,1759272641626,-29356.85052819,0.00019,2]
[388628784,1759272641635,-307.92009188,0.00019,2]
[388628785,1759272641645,-191.3181429,0.00019,2]
[388628786,1759272641655,-150.0,0.00019,2]
[388628787,1759272641665,-500.0,0.00019,2]
[388628788,1759272641674,-500.0,0.00019,2]
[388628789,1759272641683,-150.0,0.00019,2]
[388628790,1759272641692,-500.0,0.00019,2]
[388628791,1759272641701,-240.0,0.00019,2]
[388628792,1759272641710,-500.0,0.00019,2]
[388628793,1759272641721,-150.0,0.00019,2]
[388628794,1759272641730,-150.0,0.00019,2]
[388628795,1759272641739,-500.0,0.00019,2]
[388628796,1759272641748,-150.0,0.00019,2]
[388628797,1759272641757,-154.84869,0.00019,2]
[388628798,1759272641767,-927.84533496,0.00019011,2]
[388628799,1759272641776,-200.0,0.00019046,2]
[388628800,1759272641785,-1896.0,0.00019103,2]
[388628801,1759272641794,-151.62,0.00019116,2]
[388628802,1759272641803,-700.0,0.00019122,2]
[388628803,1759272641813,-353.25699851,0.00019127,2]
[388628804,1759272641822,-510.0,0.00019174,2]
[388628805,1759272641832,-151.0,0.00019178,2]
[388628806,1759272641841,-510.0,0.00019183,2]
[388628807,1759272641851,-307.92009188,0.000192,2]
[388628808,1759272641861,-3111.296755,0.00019232,2]
[388628809,1759272641870,-150.820849,0.00019232,2]
[388628810,1759272641880,-2549.711019,0.00019232,2]
[388628811,1759272641889,-1263.770276,0.00019232,2]
[388628812,1759272641899,-510.0,0.00019241,2]
[388628813,1759272641909,-500.0,0.00019251,2]
[388628814,1759272641918,-510.0,0.00019268,2]
[388628815,1759272641927,-500.0,0.00019268,2]
[388628816,1759272641936,-150.0,0.00019268,2]
[388628817,1759272641945,-500.0,0.00019268,2]
[388628818,1759272641954,-150.0,0.00019268,2]
[388628819,1759272641963,-150.0,0.00019268,2]
[388628820,1759272641973,-150.0,0.00019274,2]
[388628821,1759272641982,-500.0,0.00019274,2]
[388628822,1759272641991,-500.0,0.00019274,2]
[388628823,1759272642000,-150.0,0.00019274,2]
[388628824,1759272642010,-500.0,0.00019274,2]
[388628825,1759272642020,-550.0,0.00019274,2]
[388628826,1759272642029,-150.0,0.00019274,2]
[388628827,1759272642041,-500.0,0.00019274,2]
[388628828,1759272642051,-150.0,0.00019274,2]
[388628829,1759272642061,-510.0,0.00019279,2]
[388628830,1759272642070,-510.0,0.00019282,2]
[388628831,1759272642079,-150.0,0.00019296,2]
[388628832,1759272642089,-150.0,0.00019296,2]
[388628833,1759272642100,-500.0,0.00019296,2]
[388628834,1759272642110,-150.0,0.00019296,2]
[388628835,1759272642120,-150.0,0.00019296,2]
[388628836,1759272642130,-252.20298808,0.00019296,2]
[388628837,1759272642140,-150.0,0.00019296,2]
[388628838,1759272642150,-150.0,0.00019296,2]
[388628839,1759272642159,-284.51091678,0.000193,2]
[388628840,1759272642169,-7651.56905525,0.000193,2]
[388628841,1759272642181,-1000.0,0.000193,2]
[388628842,1759272642191,-591.67,0.00019308,2]
[388628843,1759272642201,-991.4958842,0.00019318,2]
[388628844,1759272642221,-16357.2138676,0.00019318,2]
[388628845,1759272642230,-500.0,0.00019348,2]
[388628846,1759272642240,-1000.0,0.00019348,2]
[388628847,1759272642250,-512.85212368,0.00019373,2]
[388628848,1759272642259,-591.67,0.0001939,2]
[388628849,1759272642268,-591.67,0.0001939,2]
[388628850,1759272642278,-510.0,0.00019394,2]
[388628852,1759272642547,-510.0,0.00019397,2]
[388628853,1759272642583,-171.45286408,0.00019399,2]
[388628854,1759272642593,-79532.45116674,0.000194,4]
[388628855,1759272645325,253.95,0.00014114,2]
[388628856,1759272645762,-150.0,0.00018977,2]
[388628857,1759272645771,-500.0,0.00019317,2]
[388628858,1759272645781,-278.91463185,0.00019317,2]
[388628859,1759272645791,-535.03698476,0.00019317,2]
[388628860,1759272645800,-205.05097475,0.00019317,2]
[388628861,1759272645810,-156.49740884,0.000194,4]
[388628862,1759272645822,-1120.0,0.000194,4]
[388628863,1759272645935,-275.0,0.00019251,2]
[388628864,1759272645944,-2543.29268679,0.000194,4]
[388628865,1759272645980,-3912.05,0.000194,4]
[388628910,1759272647525,-500.0,0.00018977,2]
[388628911,1759272647535,-412.23529808,0.00019251,2]
[388628912,1759272647547,-87.76470192,0.00019251,2]
[388628913,1759272647557,-948.88529808,0.000194,4]
[388628914,1759272647904,-112193.3415268,0.000194,4]
[388628915,1759272647970,-1711.08617678,0.000194,4]
[388628916,1759272647982,-1175.0,0.000194,4]
[388628917,1759272647992,-266.17975015,0.000194,4]
[388628918,1759272648172,-2949.45184391,0.000194,4]
[388628919,1759272648255,-10223.32261678,0.000194,4]
[388628921,1759272745195,3830.0,0.000301,120]
[388628925,1759273117442,2662.12,0.000301,120]
[388628926,1759273118068,502.1343,0.00030136,120]
[388628927,1759273122110,269.3694405,0.00030136,120]
[388628928,1759273170380,171.29,8.913e-05,2]
[388628929,1759273170929,171.29,0.00010696,2]
[388628930,1759273171047,171.29,0.00012478,2]
[388628931,1759273171240,171.29,0.00014261,2]
[388628932,1759273171372,171.29,0.00016043,2]
[388628937,1759273264077,350.0,0.00030136,120]
[388628942,1759273660126,173.91,0.00013846,2]
[388628944,1759273822030,538824.0,0.00030137,120]
[388629014,1759273832905,-561.68586357,0.00017114,2]
[388629017,1759273832917,-104.36334543,0.00017114,2]
[388629019,1759273832927,-240.0,0.000172,2]
[388629021,1759273832936,-195.0,0.00017243,2]
[388629023,1759273832945,-227.25,0.00017271,2]
[388629025,1759273832955,-303.52149836,0.00017287,2]
[388629027,1759273832964,-2104.1522914,0.0001733,2]
[388629029,1759273832975,-1551.846205,0.0001733,2]
[388629031,1759273832986,-1846.9815036,0.0001733,2]
[388629033,1759273832995,-153.0184964,0.00017354,2]
[388629037,1759273833028,-41.9815036,0.00017354,2]
[388629039,1759273833038,-318.28407966,0.00017366,2]
[388629042,1759273833047,-317.27335168,0.00017366,2]
[388629044,1759273833057,-1124.35860681,0.00017369,2]
[388629046,1759273833066,-243.75187404,0.00017369,2]
[388629048,1759273833076,-451.54619269,0.0001737,2]
[388629050,1759273833090,-243.75187404,0.00017373,2]
[388629052,1759273833099,-4995.930733,0.00017374,2]
[388629054,1759273833108,-236.60783017,0.00017374,2]
[388629056,1759273833118,-156.92560495,0.00017378,2]
[388629058,1759273833128,-318.28407966,0.00017379,2]
[388629059,1759273833138,-173.947391,0.00017379,2]
[388629061,1759273833147,-180.54046058,0.0001738,2]
[388629063,1759273833156,-307.10069709,0.00017381,2]
[388629065,1759273833167,-236.60783017,0.00017382,2]
[388629096,1759273833491,-318.28407966,0.00017384,2]
[388629099,1759273833509,-236.60783017,0.00017385,2]
[388629101,1759273833518,-305.98270342,0.00017388,2]
[388629103,1759273833527,-11777.92486891,0.00017388,2]
[388629105,1759273833537,-317.27335168,0.0001739,2]
[388629107,1759273833547,-317.27335168,0.00017392,2]
[388629109,1759273833556,-350.26662222,0.00017393,2]
[388629111,1759273833565,-412.73555872,0.00017397,2]
[388629112,1759273833573,-451.54619269,0.00017398,2]
[388629114,1759273833583,-305.98270342,0.00017399,2]
[388629116,1759273833592,-1124.35860681,0.00017399,2]
[388629119,1759273833601,-412.73555872,0.00017407,2]
[388629121,1759273833611,-11777.92486891,0.00017407,2]
[388629123,1759273833620,-173.947391,0.0001741,2]
[388629124,1759273833629,-1000.0,0.0001741,2]
[388629126,1759273833638,-1124.35860681,0.00017411,2]
[388629129,1759273833647,-305.98270342,0.00017413,2]
[388629131,1759273833656,-11777.92486891,0.00017415,2]
[388629133,1759273833665,-318.28407966,0.00017417,2]
[388629135,1759273833674,-4995.930733,0.00017417,2]
[388629137,1759273833683,-317.27335168,0.00017418,2]
[388629139,1759273833692,-243.75187404,0.00017422,2]
[388629141,1759273833701,-11777.92486891,0.00017423,2]
[388629143,1759273833710,-156.92560495,0.00017424,2]
[388629144,1759273833720,-173.947391,0.00017425,2]
[388629146,1759273833730,-451.54619269,0.00017426,2]
[388629149,1759273833739,-163.46011104,0.00017426,2]
[388629150,1759273833749,-350.26662222,0.00017428,2]
[388629152,1759273833758,-163.46011104,0.00017428,2]
[388629154,1759273833768,-163.46011104,0.00017428,2]
[388629155,1759273833777,-243.75187404,0.00017431,2]
[388629157,1759273833787,-350.26662222,0.00017432,2]
[388629158,1759273833796,-4995.930733,0.00017435,2]
[388629160,1759273833805,-156.92560495,0.00017437,2]
[388629161,1759273833815,-1124.35860681,0.00017442,2]
[388629163,1759273833823,-243.75187404,0.00017444,2]
[388629164,1759273833832,-180.54046058,0.00017448,2]
[388629166,1759273833841,-350.26662222,0.00017448,2]
[388629168,1759273833851,-4995.930733,0.00017451,2]
[388629169,1759273833860,-173.947391,0.00017451,2]
[388629171,1759273833869,-173.947391,0.00017453,2]
[388629172,1759273833878,-307.10069709,0.00017454,2]
[388629174,1759273833887,-451.54619269,0.00017455,2]
[388629176,1759273833896,-412.73555872,0.00017457,2]
[388629177,1759273833906,-307.10069709,0.00017457,2]
[388629179,1759273833915,-180.54046058,0.00017464,2]
[388629180,1759273833924,-307.10069709,0.00017465,2]
[388629182,1759273833933,-4995.930733,0.0001747,2]
[388629183,1759273833942,-156.92560495,0.00017471,2]
[388629185,1759273833951,-236.60783017,0.00017474,2]
[388629187,1759273833960,-11777.92486891,0.00017475,2]
[388629188,1759273833970,-451.54619269,0.00017475,2]
[388629190,1759273833979,-318.28407966,0.00017477,2]
[388629191,1759273833988,-163.46011104,0.00017479,2]
[388629193,1759273833997,-350.26662222,0.00017479,2]
[388629195,1759273834006,-156.92560495,0.0001748,2]
[388629196,1759273834015,-317.27335168,0.0001748,2]
[388629198,1759273834024,-307.10069709,0.00017483,2]
[388629200,1759273834033,-180.54046058,0.00017483,2]
[388629201,1759273834042,-305.98270342,0.00017485,2]
[388629202,1759273834051,-180.54046058,0.00017486,2]
[388629203,1759273834060,-412.73555872,0.00017486,2]
[388629204,1759273834068,-236.60783017,0.00017487,2]
[388629205,1759273834077,-1124.35860681,0.00017493,2]
[388629206,1759273834088,-412.73555872,0.00017493,2]
[388629207,1759273834098,-163.46011104,0.00017494,2]
[388629208,1759273834107,-305.98270342,0.00017494,2]
[388629209,1759273834118,-1200.0,0.00017541,2]
[388629210,1759273834127,-1179.11,0.00017542,2]
[388629211,1759273834137,-165.85,0.00017579,2]
[388629212,1759273834146,-300.0,0.0001766,2]
[388629213,1759273834155,-632.08,0.00017661,2]
[388629214,1759273834165,-200.0,0.00017661,2]
[388629215,1759273834175,-180.06018685,0.00017661,2]
[388629216,1759273834184,-151.0,0.00017661,2]
[388629217,1759273834193,-151.0,0.00017661,2]
[388629218,1759273834202,-151.0,0.00017661,2]
[388629219,1759273834212,-151.0,0.00017661,2]
[388629220,1759273834221,-151.0,0.00017661,2]
[388629221,1759273834230,-151.0,0.00017661,2]
[388629222,1759273834240,-151.0,0.00017661,2]
[388629223,1759273834249,-151.0,0.00017661,2]
[388629224,1759273834258,-151.0,0.00017661,2]
[388629225,1759273834267,-151.0,0.00017661,2]
[388629226,1759273834276,-500.0,0.00017661,2]
[388629227,1759273834285,-151.0,0.00017661,2]
[388629228,1759273834294,-500.0,0.00017661,2]
[388629229,1759273834303,-151.0,0.00017661,2]
[388629230,1759273834312,-500.0,0.00017661,2]
[388629231,1759273834322,-151.0,0.00017661,2]
[388629232,1759273834330,-151.0,0.00017661,2]
[388629233,1759273834339,-500.0,0.00017661,2]
[388629234,1759273834348,-151.0,0.00017661,2]
[388629235,1759273834357,-151.0,0.00017661,2]
[388629236,1759273834366,-500.0,0.00017661,2]
[388629237,1759273834375,-151.0,0.00017661,2]
[388629238,1759273834384,-151.0,0.00017661,2]
[388629239,1759273834393,-500.0,0.00017661,2]
[388629240,1759273834403,-151.0,0.00017661,2]
[388629241,1759273834412,-500.0,0.00017661,2]
[388629242,1759273834421,-159.97358766,0.00017661,2]
[388629243,1759273834430,-500.0,0.00017661,2]
[388629244,1759273834439,-500.0,0.00017661,2]
[388629245,1759273834448,-500.0,0.00017661,2]
[388629246,1759273834457,-515.25587124,0.00017661,2]
[388629247,1759273834466,-264.00213122,0.00017661,2]
[388629248,1759273834476,-202.20974195,0.00017661,2]
[388629249,1759273834485,-332.20330044,0.00017661,2]
[388629250,1759273834495,-9682.38,0.00017672,2]
[388629251,1759273834504,-171.29,0.00017826,2]
[388629252,1759273834513,-200.0,0.00017833,2]
[388629253,1759273834522,-632.08,0.00017935,2]
[388629254,1759273834531,-322.6107,0.00017964,2]
[388629255,1759273834541,-670.58624095,0.00017964,2]
[388629256,1759273834550,-500.0,0.00017964,2]
[388629257,1759273834560,-500.0,0.00017964,2]
[388629258,1759273834569,-500.0,0.00017964,2]
[388629259,1759273834578,-500.0,0.00017964,2]
[388629260,1759273834587,-500.0,0.00017964,2]
[388629261,1759273834596,-500.0,0.00017964,2]
[388629262,1759273834605,-500.0,0.00017964,2]
[388629263,1759273834614,-257.91778498,0.00017964,2]
[388629264,1759273834624,-500.0,0.00017964,2]
[388629265,1759273834634,-500.0,0.00017964,2]
[388629266,1759273834644,-500.0,0.00017964,2]
[388629267,1759273834653,-500.0,0.00017964,2]
[388629268,1759273834662,-678.31171239,0.00017964,2]
[388629269,1759273834671,-222.99,0.00017971,2]
[388629270,1759273834681,-151.16,0.00018038,2]
[388629271,1759273834690,-151.32,0.00018038,2]
[388629272,1759273834698,-265.78,0.00018053,2]
[388629273,1759273834708,-151.23,0.00018129,2]
[388629274,1759273834717,-632.08,0.00018209,2]
[388629275,1759273834727,-151.78,0.00018216,2]
[388629276,1759273834737,-151.17,0.00018216,2]
[388629277,1759273834746,-150.1,0.00018308,2]
[388629278,1759273834755,-304.82,0.00018308,2]
[388629279,1759273834764,-152.53,0.00018308,2]
[388629280,1759273834774,-302.49,0.00018308,2]
[388629281,1759273834783,-151.84,0.00018308,2]
[388629282,1759273834794,-150.41,0.00018308,2]
[388629283,1759273834803,-152.81,0.00018308,2]
[388629284,1759273834812,-237.58,0.00018329,2]
[388629285,1759273834822,-235.0,0.0001838,2]
[388629286,1759273834831,-200.50344808,0.00018392,2]
[388629287,1759273834840,-151.66,0.000184,2]
[388629288,1759273834850,-301.49,0.000184,2]
[388629289,1759273834859,-150.56,0.000184,2]
[388629290,1759273834868,-152.37,0.000184,2]
[388629291,1759273834877,-150.33,0.000184,2]
[388629292,1759273834887,-151.02,0.000184,2]
[388629293,1759273834896,-150.5,0.000184,2]
[388629294,1759273834906,-152.2,0.000184,2]
[388629295,1759273834915,-151.26,0.000184,2]
[388629296,1759273834924,-216.27720738,0.000184,2]
[388629297,1759273834934,-191.3181429,0.000184,2]
[388629298,1759273834943,-1436.0,0.000184,2]
[388629299,1759273834953,-7000.0,0.000184,2]
[388629300,1759273834963,-304.59,0.000184,2]
[388629301,1759273834972,-301.87,0.000184,2]
[388629302,1759273834982,-301.29,0.000184,2]
[388629303,1759273834991,-302.43,0.000184,2]
[388629304,1759273835000,-305.41,0.00018411,2]
[388629305,1759273835010,-168.68,0.0001843,2]
[388629306,1759273835019,-632.08,0.00018483,2]
[388629307,1759273835029,-450.48,0.00018498,2]
[388629308,1759273835044,-151.64,0.00018501,2]
[388629309,1759273835054,-830.4047,0.0001855,2]
[388629310,1759273835063,-4040.8042,0.0001855,2]
[388629311,1759273835072,-3354.3782,0.0001855,2]
[388629312,1759273835082,-2500.0,0.0001855,2]
[388629313,1759273835096,-806.89,0.00018555,2]
[388629314,1759273835105,-664.41,0.00018555,2]
[388629315,1759273835115,-806.89,0.00018555,2]
[388629316,1759273835124,-1613.47,0.00018555,2]
[388629317,1759273835135,-469.83,0.00018555,2]
[388629318,1759273835144,-806.89,0.00018555,2]
[388629319,1759273835153,-492.7,0.00018555,2]
[388629320,1759273835164,-749.68,0.00018555,2]
[388629321,1759273835174,-9797.55340698,0.00018572,2]
[388629322,1759273835183,-273.93243151,0.00018573,2]
[388629323,1759273835193,-216.27720738,0.000186,2]
[388629324,1759273835202,-191.3181429,0.000186,2]
[388629325,1759273835212,-1000.0,0.0001863,2]
[388629326,1759273835221,-397.52630662,0.00018649,2]
[388629327,1759273835232,-408.89920287,0.00018649,2]
[388629328,1759273835242,-279.9893729,0.00018649,2]
[388629329,1759273835251,-500.0,0.00018649,2]
[388629330,1759273835260,-467.28979383,0.00018649,2]
[388629331,1759273835269,-176.46034792,0.00018649,2]
[388629332,1759273835279,-113572.58610708,0.0001865,2]
[388629333,1759273835288,-113572.58610708,0.0001865,2]
[388629334,1759273835297,-113572.58610708,0.0001865,2]
[388629335,1759273835307,-262.68,0.00018672,2]
[388629336,1759273835316,-500.0,0.00018673,2]
[388629337,1759273835326,-500.0,0.00018673,2]
[388629338,1759273835335,-632.08,0.00018757,2]
[388629339,1759273835345,-216.27720738,0.000188,2]
[388629340,1759273835355,-191.3181429,0.000188,2]
[388629341,1759273835365,-211.0,0.00018803,2]
[388629342,1759273835374,-2321.052,0.00018849,2]
[388629343,1759273835384,-563.6423,0.00018878,2]
[388629344,1759273835393,-250.0,0.00018887,2]
[388629345,1759273835402,-304.01,0.00018888,2]
[388629346,1759273835411,-152.52,0.00018888,2]
[388629347,1759273835420,-195.0,0.0001892,2]
[388629348,1759273835430,-300.0,0.0001892,2]
[388629349,1759273835439,-211.0,0.00018941,2]
[388629350,1759273835451,-195.0,0.00018986,2]
[388629351,1759273835460,-300.0,0.00018986,2]
[388629352,1759273835470,-300.0,0.00018986,2]
[388629353,1759273835480,-211.0,0.00018994,2]
[388629354,1759273835490,-216.27720738,0.00019,2]
[388629355,1759273835499,-211.0,0.00019019,2]
[388629356,1759273835510,-632.08,0.00019031,2]
[388629357,1759273835520,-211.0,0.00019081,2]
[388629358,1759273835529,-545.07,0.0001911,2]
[388629359,1759273835539,-167.75,0.0001911,2]
[388629360,1759273835549,-167.51,0.0001911,2]
[388629361,1759273835559,-211.0,0.00019134,2]
[388629362,1759273835571,-151.0,0.00019178,2]
[388629363,1759273835580,-216.27720738,0.000192,2]
[388629364,1759273835590,-1000.0,0.00019221,2]
[388629365,1759273835600,-4113.0,0.00019222,2]
[388629366,1759273835609,-6233.0,0.00019222,2]
[388629367,1759273835618,-621.0,0.00019222,2]
[388629368,1759273835628,-1680.0,0.00019242,2]
[388629369,1759273835637,-200.0,0.00019244,2]
[388629370,1759273835647,-420.0,0.00019276,2]
[388629371,1759273835656,-273.04792717,0.00019286,2]
[388629372,1759273835666,-150.0,0.00019296,2]
[388629373,1759273835678,-150.0,0.00019296,2]
[388629374,1759273835687,-150.0,0.00019296,2]
[388629375,1759273835697,-500.0,0.00019296,2]
[388629376,1759273835706,-150.0,0.00019296,2]
[388629377,1759273835716,-500.0,0.00019296,2]
[388629378,1759273835725,-247.28198202,0.00019296,2]
[388629379,1759273835735,-500.0,0.00019296,2]
[388629380,1759273835744,-150.0,0.00019296,2]
[388629381,1759273835754,-150.0,0.00019296,2]
[388629382,1759273835763,-150.0,0.00019296,2]
[388629383,1759273835772,-150.0,0.00019296,2]
[388629384,1759273835782,-150.0,0.00019296,2]
[388629385,1759273835792,-150.0,0.00019296,2]
[388629386,1759273835801,-252.20298808,0.00019296,2]
[388629387,1759273835811,-150.0,0.00019296,2]
[388629388,1759273835822,-150.0,0.00019296,2]
[388629389,1759273835831,-150.0,0.00019296,2]
[388629390,1759273835840,-500.0,0.00019296,2]
[388629391,1759273835850,-500.0,0.00019296,2]
[388629392,1759273835859,-200.0,0.00019296,2]
[388629393,1759273835869,-150.0,0.00019296,2]
[388629394,1759273835878,-150.0,0.00019296,2]
[388629395,1759273835887,-287.22136498,0.00019296,2]
[388629396,1759273835896,-579.0,0.00019296,2]
[388629397,1759273835906,-150.0,0.00019296,2]
[388629398,1759273835915,-150.0,0.00019296,2]
[388629399,1759273835924,-253.41257278,0.00019296,2]
[388629400,1759273835934,-150.0,0.00019296,2]
[388629401,1759273835943,-150.0,0.00019296,2]
[388629402,1759273835952,-150.0,0.00019296,2]
[388629403,1759273835962,-150.0,0.00019296,2]
[388629404,1759273835971,-500.0,0.00019296,2]
[388629405,1759273835981,-150.0,0.00019296,2]
[388629406,1759273835990,-632.08,0.00019305,2]
[388629407,1759273836000,-334.5472959,0.00019333,2]
[388629408,1759273836009,-267.46074303,0.00019333,2]
[388629409,1759273836019,-3108.36,0.00019339,2]
[388629410,1759273836028,-2188.65,0.00019339,2]
[388629411,1759273836038,-9797.55340691,0.00019354,2]
[388629412,1759273836047,-151.0,0.00019383,2]
[388629413,1759273836056,-1070.1839371,0.00019386,2]
[388629414,1759273836067,-132406.7116389,0.00019386,2]
[388629415,1759273836076,-3507.035159,0.00019386,2]
[388629416,1759273836087,-156.67646561,0.00019399,2]
[388629417,1759273836102,-850.79251,0.00019399,2]
[388629418,1759273836116,-45698.76917993,0.000194,4]
[388629419,1759273836126,-150.0,0.000194,2]